fUSD/lending_fUSD_20240618
["ID","MTS","AMOUNT","RATE_DAILY","PERIOD"]
[329833852,1718727041577,-20403.59582996,0.000199,2]
[329833867,1718727042686,-4686.89984761,0.00016146,2]
[329833868,1718727042695,-500.0,0.00016387,2]
[329833869,1718727042706,-500.0,0.00016387,2]
[329833870,1718727042716,-500.0,0.00016387,2]
[329833871,1718727042729,-500.0,0.00016387,2]
[329833872,1718727042739,-500.0,0.00016387,2]
[329833873,1718727042748,-500.0,0.00016387,2]
[329833874,1718727042758,-365.72100783,0.00019897,2]
[329833875,1718727042767,-500.0,0.00019898,2]
[329833876,1718727042776,-1284.81511663,0.000199,2]
[329833877,1718727042983,-500.0,0.00016387,2]
[329833878,1718727042992,-500.0,0.00019898,2]
[329833879,1718727043002,-6890.42520458,0.000199,2]
[329833880,1718727043011,-140496.74227797,0.0002,2]
[329833881,1718727043032,-2421.64072728,0.0002,2]
[329833882,1718727043044,-27831.81145817,0.0002,2]
[329833883,1718727043105,-500.0,0.00016387,2]
[329833884,1718727043115,-2427.25973872,0.0002,2]
[329833909,1718727045961,-500.0,0.00016387,2]
[329833910,1718727045973,-111.967,0.00016387,2]
[329833946,1718727086034,399.91458818,0.0001,2]
[329833947,1718727125775,337.0,0.0002,30]
[329833948,1718727172882,306.1744,9.801e-05,2]
[329833950,1718727374079,20000.0,0.00024,90]
[329833977,1718728232034,-181.26889734,0.00012898,2]
[329833978,1718728232043,-139.35207541,0.00012898,2]
[329833979,1718728232056,-78.35951368,0.00012898,2]
[329833980,1718728232065,-412.39731356,0.00012898,2]
[329833981,1718728232074,-304.81318276,0.00012899,2]
[329833982,1718728232120,-23.460362,0.00012899,2]
[329833983,1718728232130,-3390.20012,0.000129,2]
[329833984,1718728232139,-1492.20429968,0.00012901,2]
[329833985,1718728232148,-497.71503887,0.00012901,2]
[329833986,1718728232159,-502.28496113,0.00012901,2]
[329833987,1718728232168,-689.65636266,0.00012902,2]
[329833988,1718728232178,-526.08886791,0.00012902,2]
[329833989,1718728232187,-250.0,0.00012903,2]
[329833990,1718728232196,-155.0,0.00013453,2]
[329833991,1718728232205,-155.0,0.00013453,2]
[329833992,1718728232214,-543.55356505,0.00013454,2]
[329833993,1718728232224,-300.0,0.00013454,2]
[329833994,1718728232233,-459.12874553,0.00013465,2]
[329833995,1718728232246,-767.59,0.00013483,2]
[329833996,1718728232255,-964.79,0.00014,6]
[329833997,1718728232264,-499.99,0.00014,2]
[329833998,1718728232273,-2489.57083121,0.00015085,2]
[329833999,1718728232283,-1080.0,0.00015086,2]
[329834000,1718728232292,-168.5,0.00015133,2]
[329834001,1718728232301,-1000.0,0.00015146,2]
[329834002,1718728232311,-150.0,0.00015192,2]
[329834003,1718728232320,-200.0,0.000152,2]
[329834004,1718728232329,-812.84,0.00015268,2]
[329834005,1718728232339,-767.59,0.00015747,2]
[329834006,1718728232349,-3796.3427,0.00015916,2]
[329834007,1718728232358,-628.0056785,0.0001601,2]
[329834008,1718728232367,-23890.0,0.00016016,2]
[329834009,1718728232376,-35556.6453,0.00016187,2]
[329834010,1718728232387,-211.8811,0.00016187,2]
[329834011,1718728232396,-1725.57730743,0.00016223,2]
[329834012,1718728232404,-709.61,0.00016234,2]
[329834013,1718728232414,-709.61,0.00016279,2]
[329834014,1718728232423,-305.02384942,0.00016285,2]
[329834015,1718728232433,-5368.65254949,0.00016285,2]
[329834016,1718728232442,-338.60966549,0.00016286,2]
[329834017,1718728232452,-734.7516,0.00016287,2]
[329834018,1718728232462,-1000.0,0.00016287,2]
[329834019,1718728232471,-245000.0,0.00016287,2]
[329834020,1718728232480,-709.61,0.00016323,2]
[329834021,1718728232489,-250.0,0.00016351,2]
[329834022,1718728232508,-709.61,0.00016368,2]
[329834023,1718728232737,-367.93503039,0.00016387,2]
[329834024,1718728232761,-709.61,0.00016412,2]
[329834025,1718728232771,-709.61,0.00016457,2]
[329834026,1718728232781,-1808.96141181,0.000165,2]
[329834027,1718728232790,-709.61,0.00016501,2]
[329834028,1718728232800,-267.0,0.0001653,2]
[329834029,1718728232810,-709.61,0.00016546,2]
[329834030,1718728232819,-709.61,0.0001659,2]
[329834031,1718728232828,-709.61,0.00016635,2]
[329834032,1718728232838,-709.61,0.00016679,2]
[329834033,1718728232847,-1725.57730738,0.00016691,2]
[329834034,1718728232857,-709.61,0.00016724,2]
[329834035,1718728232867,-302.23227731,0.00016757,2]
[329834036,1718728232876,-709.61,0.00016768,2]
[329834037,1718728232886,-23315.91648983,0.000168,2]
[329834038,1718728232896,-709.61,0.00016813,2]
[329834039,1718728232905,-709.61,0.00016857,2]
[329834040,1718728232915,-709.61,0.00016902,2]
[329834041,1718728232924,-709.61,0.00016946,2]
[329834042,1718728232933,-709.61,0.00016991,2]
[329834043,1718728232942,-709.61,0.00017035,2]
[329834044,1718728232950,-1000.0,0.00017039,2]
[329834045,1718728232959,-709.61,0.0001708,2]
[329834046,1718728232968,-1725.57730738,0.00017158,2]
[329834047,1718728232978,-302.23227724,0.00017171,2]
[329834048,1718728232987,-267.0,0.0001721,2]
[329834049,1718728233004,-2129.849,0.00017256,2]
[329834050,1718728233014,-1304.0,0.00017256,2]
[329834051,1718728233023,-447.0,0.00017256,2]
[329834052,1718728233037,-150.0,0.00017256,2]
[329834053,1718728233047,-1970.0,0.00017256,2]
[329834054,1718728233057,-547.0,0.00017256,2]
[329834055,1718728233067,-295.348,0.00017256,2]
[329834056,1718728233076,-1067.0,0.00017256,2]
[329834057,1718728233086,-290.0,0.00017256,2]
[329834058,1718728233096,-1271.0,0.00017256,2]
[329834059,1718728233106,-359.0,0.00017256,2]
[329834060,1718728233115,-1830.0,0.00017256,2]
[329834061,1718728233125,-5794.0,0.00017256,2]
[329834062,1718728233134,-268.77,0.00017326,2]
[329834063,1718728233144,-168.5,0.00017395,2]
[329834064,1718728233154,-302.23227724,0.00017586,2]
[329834065,1718728233164,-1355.83,0.00017807,2]
[329834066,1718728233174,-171.35,0.00017828,2]
[329834067,1718728233183,-267.0,0.0001789,2]
[329834068,1718728233192,-302.23227724,0.00018,2]
[329834069,1718728233202,-367.87299889,0.00018,2]
[329834070,1718728233211,-650.49950903,0.00018,2]
[329834071,1718728233220,-812.84,0.00018008,2]
[329834072,1718728233231,-767.59,0.00018011,2]
[329834073,1718728233245,-159.61,0.00018199,2]
[329834074,1718728233254,-302.23227724,0.00018414,2]
[329834075,1718728233263,-267.0,0.0001857,2]
[329834076,1718728233273,-200.0,0.00018608,2]
[329834077,1718728233283,-302.23227724,0.00018829,2]
[329834078,1718728233293,-1000.0,0.00018932,2]
[329834079,1718728233302,-1820.80005869,0.00019,2]
[329834080,1718728233318,-443.73261381,0.00019,2]
[329834081,1718728233329,-530.44,0.00019,2]
[329834082,1718728233458,-1725.57730738,0.00017626,2]
[329834083,1718728233468,-2205.0273275,0.00019,2]
[329834084,1718728233477,-500.0,0.00019178,3]
[329834085,1718728233487,-423.93455043,0.00019198,2]
[329834086,1718728233504,-302.23227724,0.00019243,2]
[329834087,1718728233513,-267.0,0.0001925,2]
[329834088,1718728233525,-227.0,0.0001925,2]
[329834089,1718728233534,-500.0,0.00019452,4]
[329834090,1718728233544,-5618.11138893,0.00019452,2]
[329834091,1718728233554,-268.77,0.00019492,2]
[329834092,1718728233563,-350.41583602,0.00019497,2]
[329834093,1718728233573,-224.43283726,0.00019497,2]
[329834094,1718728233583,-1621.02407655,0.000195,2]
[329834095,1718728233594,-500.0,0.00019597,2]
[329834096,1718728233603,-500.0,0.00019597,2]
[329834097,1718728233613,-1100.0,0.00019597,2]
[329834098,1718728233622,-1700.0,0.00019597,2]
[329834099,1718728233631,-500.0,0.00019597,2]
[329834100,1718728233641,-1042.29044845,0.000196,2]
[329834101,1718728233650,-1042.28582361,0.000196,2]
[329834102,1718728233659,-1130.0,0.000196,2]
[329834103,1718728233668,-302.23227724,0.00019657,2]
[329834104,1718728233677,-224.43283725,0.00019699,2]
[329834105,1718728233687,-1000.0,0.000197,2]
[329834106,1718728233696,-10000.0,0.000197,2]
[329834107,1718728233706,-500.0,0.00019726,5]
[329834108,1718728233715,-500.0,0.000198,2]
[329834109,1718728233724,-500.0,0.000198,2]
[329834110,1718728233734,-500.0,0.000198,2]
[329834111,1718728233745,-500.0,0.000198,2]
[329834112,1718728233755,-500.0,0.000198,2]
[329834113,1718728233764,-500.0,0.000198,2]
[329834114,1718728233773,-500.0,0.000198,2]
[329834115,1718728233783,-500.0,0.000198,2]
[329834116,1718728233792,-500.0,0.000198,2]
[329834117,1718728233801,-500.0,0.000198,2]
[329834118,1718728233811,-500.0,0.000198,2]
[329834119,1718728233820,-500.0,0.000198,2]
[329834120,1718728233830,-415.07899166,0.0001982,2]
[329834121,1718728233839,-500.0,0.00019839,2]
[329834122,1718728233849,-500.0,0.0001984,2]
[329834123,1718728233860,-200.0,0.0001984,2]
[329834124,1718728233869,-500.0,0.0001984,2]
[329834125,1718728233879,-500.0,0.0001984,2]
[329834126,1718728233889,-200.0,0.0001984,2]
[329834127,1718728233899,-500.0,0.0001984,2]
[329834128,1718728233908,-500.0,0.0001984,2]
[329834129,1718728233918,-500.0,0.0001984,2]
[329834130,1718728233928,-500.0,0.0001984,2]
[329834131,1718728233937,-500.0,0.0001984,2]
[329834132,1718728233947,-500.0,0.0001984,2]
[329834133,1718728233956,-500.0,0.0001984,2]
[329834134,1718728233965,-500.0,0.0001984,2]
[329834135,1718728233975,-500.0,0.0001984,2]
[329834136,1718728233984,-500.0,0.0001984,2]
[329834137,1718728233996,-500.0,0.0001984,2]
[329834138,1718728234006,-500.0,0.0001984,2]
[329834139,1718728234015,-500.0,0.0001984,2]
[329834140,1718728234025,-500.0,0.0001984,2]
[329834141,1718728234035,-500.0,0.0001984,2]
[329834142,1718728234045,-177.37658849,0.00019889,2]
[329834143,1718728234054,-180.77044057,0.00019897,2]
[329834144,1718728234064,-344.39353828,0.00019897,2]
[329834145,1718728234073,-235.93864473,0.00019898,2]
[329834146,1718728234083,-6817.51194276,0.00019899,2]
[329834147,1718728234093,-6817.51194272,0.00019899,2]
[329834148,1718728234103,-6817.51194272,0.00019899,2]
[329834149,1718728234113,-5354.21905576,0.00019899,2]
[329834150,1718728234126,-355.02989947,0.00019899,2]
[329834151,1718728234138,-1108.26298749,0.00019899,2]
[329834152,1718728234147,-2491.73701251,0.00019899,2]
[329834159,1718728238603,-1905.68534038,0.0001,2]
[329834160,1718728238614,-911428.97635993,0.00015,2]
[329834161,1718728238626,-4346.6654369,0.00015,2]
[329834167,1718728240311,-59431.67630778,0.00015,2]
[329834168,1718728240399,-324.15917047,0.00015,2]
[329834169,1718728240581,-382.30783491,0.00015,2]
[329834170,1718728240596,-64587.99999997,0.00015,2]
[329834171,1718728240635,-3059.40808486,0.00015,2]
[329834204,1718728243178,-380.26433714,0.00015,2]
[329834205,1718728243190,-586.82087051,0.00015,2]
[329834206,1718728243313,-481.79989759,0.00015,2]
[329834234,1718728246183,-2489.57083121,0.00014999,2]
[329834235,1718728246193,-232.81081134,0.00014999,2]
[329834236,1718728246410,-2190.29666254,0.00014999,2]
[329834237,1718728246420,-155.0,0.00014999,2]
[329834238,1718728246430,-155.0,0.00014999,2]
[329834239,1718728246439,-543.55356505,0.00014999,2]
[329834240,1718728246449,-3401.24977241,0.00015,2]
[329834241,1718728246461,-4772.37001955,0.00015,2]
[329834242,1718728246494,-57440.000016,0.00015,2]
[329834279,1718728290007,-423.93455043,0.00014398,2]
[329834281,1718728312151,1044.24871518,0.00014398,2]
[329834282,1718728313313,1789.2127979,0.00014398,2]
[329834283,1718728321827,155.0,0.00014398,2]
[329834284,1718728326084,1044.24871518,0.00014398,2]
[329834286,1718728327319,1192.80853193,0.00014398,2]
[329834287,1718728336828,250.0,0.00012903,2]
[329834291,1718728341833,301.34760359,0.00014398,2]
[329834292,1718728345391,1102.88475034,0.00014398,2]
[329834293,1718728351481,994.00710995,0.00014398,2]
[329834300,1718728371950,517.87770428,0.00014398,2]
[329834302,1718728374373,1184.42952122,0.00014398,2]
[329834314,1718728471742,150.0,6.94e-05,2]
[329834315,1718728537848,517.87770428,6.94e-05,2]
[329834316,1718728551872,517.87770428,6.94e-05,2]
[329834317,1718728571869,517.87770428,6.94e-05,2]
[329834318,1718728587862,517.87770428,6.94e-05,2]
[329834319,1718728607914,517.87770428,6.94e-05,2]
[329834321,1718728629901,517.87770428,6.94e-05,2]
[329834322,1718728647914,517.87770428,6.94e-05,2]
[329834323,1718728666238,517.87770428,6.94e-05,2]
[329834324,1718728685883,517.87770428,6.94e-05,2]
[329834326,1718728705994,517.87770428,6.94e-05,2]
[329834327,1718728723901,267.38791259,6.94e-05,2]
[329834329,1718728803437,204.90898564,6.94e-05,2]
[329834331,1718728925347,303.305,6.593e-05,2]
[329834339,1718729253667,15000.0,0.00024,90]
[329834437,1718729432170,-169.27557674,0.0001108,2]
[329834438,1718729432182,-89.56223486,0.00011177,2]
[329834439,1718729432196,-168.89470473,0.00011177,2]
[329834440,1718729432206,-155.0,0.00011178,2]
[329834441,1718729432216,-112.78986298,0.0001118,2]
[329834442,1718729432278,-493.5770007,0.0001118,2]
[329834443,1718729432291,-264.82796935,0.0001118,2]
[329834444,1718729432302,-1131.32884399,0.0001118,2]
[329834445,1718729432311,-652.45,0.00011417,2]
[329834446,1718729432321,-2373.89192913,0.00011795,2]
[329834447,1718729432330,-689.65636266,0.00011796,2]
[329834448,1718729432340,-5016.20285955,0.000118,2]
[329834449,1718729432350,-412.39731356,0.00012954,2]
[329834450,1718729432359,-270.27,0.0001297,2]
[329834451,1718729432369,-161.26,0.00013038,2]
[329834452,1718729432378,-1000.0,0.00013242,2]
[329834453,1718729432388,-250.0,0.00013309,2]
[329834454,1718729432397,-652.45,0.00013681,2]
[329834455,1718729432407,-268.8,0.00013856,2]
[329834456,1718729432417,-63956.37276666,0.0001398,2]
[329834457,1718729432454,-2790.34058908,0.0001398,2]
[329834458,1718729432465,-13209.71284197,0.0001398,2]
[329834459,1718729432477,-54833.8936181,0.0001398,2]
[329834460,1718729432486,-17108.874,0.0001398,2]
[329834461,1718729432498,-345.61502096,0.00013998,2]
[329834463,1718729432508,-368.02980478,0.00013998,2]
[329834465,1718729432517,-62303.73526795,0.00014,2]
[329834470,1718729432563,-5266.50034385,0.00014,2]
[329834471,1718729432574,-909.3594811,0.00014,2]
[329834472,1718729432585,-5053.8465774,0.00014,2]
[329834517,1718729438887,-500.6964493,0.00014,2]
[329834519,1718729438899,-91016.58461595,0.00014,2]
[329834527,1718729438964,-68755.68790399,0.00014,2]
[329834529,1718729438974,-6392.20870816,0.00014,2]
[329834531,1718729438983,-2489.57083121,0.00014,2]
[329834533,1718729438992,-172.18062891,0.00014298,2]
[329834535,1718729439007,-538.51550867,0.00014396,2]
[329834536,1718729439017,-8428.82850132,0.00014398,2]
[329834537,1718729439027,-20286.29635735,0.00014398,2]
[329834538,1718729439036,-306.93153569,0.00014418,2]
[329834539,1718729439046,-1202.39070807,0.00014471,2]
[329834540,1718729439057,-306.93153569,0.00014539,2]
[329834541,1718729439067,-1202.39070807,0.00014614,2]
[329834542,1718729439076,-306.93153569,0.00014659,2]
[329834543,1718729439087,-161.26,0.00014667,2]
[329834544,1718729439097,-1202.39070807,0.00014757,2]
[329834545,1718729439106,-306.93153569,0.0001478,2]
[329834546,1718729439116,-184.15167195,0.000148,2]
[329834547,1718729439126,-176.32029516,0.000148,2]
[329834548,1718729439136,-175.20791801,0.000148,2]
[329834549,1718729439146,-179.92903947,0.00014804,2]
[329834550,1718729439156,-179.92903946,0.00014852,2]
[329834551,1718729439166,-177.37658849,0.0001489,2]
[329834552,1718729439177,-1000.0,0.00014898,2]
[329834553,1718729439186,-685.94249206,0.00014899,2]
[329834554,1718729439196,-126847.92947599,0.000149,2]
[329834555,1718729439206,-445451.65201983,0.000149,2]
[329834556,1718729439216,-179.92903946,0.000149,2]
[329834557,1718729439225,-1202.39070807,0.000149,2]
[329834558,1718729439235,-306.93153569,0.000149,2]
[329834559,1718729439246,-175.20791801,0.000149,2]
[329834560,1718729439258,-370.31118308,0.000149,2]
[329834561,1718729439269,-345.04747232,0.000149,2]
[329834563,1718729439279,-349.9705328,0.000149,2]
[329834565,1718729439289,-219.9,0.00014904,3]
[329834567,1718729439299,-217.57529693,0.00014998,2]
[329834569,1718729439309,-411.02189811,0.00014998,2]
[329834571,1718729439319,-207.0682767,0.00014998,2]
[329834572,1718729439329,-248.47561713,0.00014998,2]
[329834574,1718729439339,-365.72100783,0.00014998,2]
[329834576,1718729439349,-235.93864473,0.00014998,2]
[329834578,1718729439359,-538.14719225,0.00014998,2]
[329834579,1718729439368,-334.73294904,0.00014999,2]
[329834581,1718729439378,-180.77044057,0.00014999,2]
[329834583,1718729439388,-218421.95140021,0.00015,2]
[329834585,1718729439400,-5530.57087126,0.00015,2]
[329834587,1718729439411,-811.61846607,0.00015,2]
[329834590,1718729439432,-384.39306398,0.00015,2]
[329834594,1718729439448,-952.2879548,0.00015,2]
[329834596,1718729439460,-712.39833394,0.00015,2]
[329834612,1718729439629,-14325.4,0.00015,2]
[329834706,1718729440566,-2525.4400286,0.00015,2]
[329834708,1718729440577,-2860.10473863,0.00015,2]
[329834714,1718729440634,-513.43172476,0.00015,2]
[329834998,1718729443260,-36663.47496338,0.00015,2]
[329835000,1718729443272,-1411.3810853,0.00015,2]
[329835013,1718729443384,-49.32472013,0.00015,2]
[329835028,1718729443528,-359.79125939,0.00015,2]
[329835031,1718729443540,-27831.81145817,0.00015,2]
[329835033,1718729443551,-6596.28060567,0.00015,2]
[329835280,1718729446575,-155.0,0.00014999,2]
[329835281,1718729446585,-157.16000421,0.00015,2]
[329835282,1718729446597,-2697.94031355,0.00015,2]
[329835283,1718729446609,-1293.9828,0.00015,2]
[329835284,1718729446710,-431.96925012,0.00015,2]
[329835293,1718729446928,-1752.76552641,0.00015,2]
[329835296,1718729446944,-1072.03613036,0.00015,2]
[329835297,1718729446955,-619.69677273,0.00015,2]
[329835300,1718729446967,-284.2125,0.00015,2]
[329835302,1718729446978,-346.960194,0.00015,2]
[329835597,1718729564479,-10000.0,0.000139,2]
[329835598,1718729565005,-10000.0,0.000139,2]
[329835599,1718729753403,-253.96491145,0.00013621,2]
[329835600,1718729753426,-412.39731356,0.00013622,2]
[329835601,1718729753448,-155.0,0.00013622,2]
[329835602,1718729753470,-155.0,0.00013623,2]
[329835603,1718729753492,-158.74713839,0.00013624,2]
[329835604,1718729753514,-155.0,0.00013624,2]
[329835605,1718729753537,-646.63503555,0.00013625,2]
[329835606,1718729753562,-258.45693959,0.00013625,2]
[329835607,1718729753585,-675.33,0.00013628,2]
[329835608,1718729753606,-1469.0,0.00013893,2]
[329835609,1718729753628,-300.0,0.00013899,2]
[329835610,1718729753651,-5360.46866146,0.000139,2]
[329835611,1718729770559,-1069.69003854,0.000139,2]
[329835612,1718729774917,944.77303847,0.00013899,2]
[329835613,1718729776902,7985.53692299,0.000139,2]
[329835614,1718729776926,10000.0,0.000139,2]
[329835615,1718729776949,10000.0,0.000139,2]
[329835616,1718729776972,10000.0,0.000139,2]
[329835617,1718729776994,10000.0,0.000139,2]
[329835618,1718729791130,306.88711484,0.00024,90]
[329835619,1718729794472,-10000.0,0.000139,2]
[329835620,1718729795656,-10000.0,0.000139,2]
[329835621,1718729796949,-10000.0,0.000139,2]
[329835622,1718729797873,-10000.0,0.000139,2]
[329835623,1718729798598,-10000.0,0.000139,2]
[329835624,1718729813532,-10000.0,0.000139,2]
[329835625,1718729814119,-10000.0,0.000139,2]
[329835626,1718729814802,-10000.0,0.000139,2]
[329835627,1718729815489,-5074.39690954,0.000139,2]
[329835628,1718729829010,4925.60309046,0.000139,2]
[329835629,1718729829270,10000.0,0.000139,2]
[329835630,1718729832542,-10000.0,0.000139,2]
[329835631,1718729844443,-10000.0,0.000139,2]
[329835928,1718730633779,-472.04,0.00011378,2]
[329835930,1718730633834,-154.5749548,0.00011378,2]
[329835932,1718730633843,-2339.83836701,0.00011379,2]
[329835934,1718730633853,-1069.02857438,0.00011379,2]
[329835936,1718730633862,-328.27354476,0.0001138,2]
[329835938,1718730633872,-538.51550867,0.0001138,2]
[329835940,1718730633881,-155.0,0.0001138,2]
[329835942,1718730633890,-158.74713839,0.0001138,2]
[329835944,1718730633899,-155.0,0.00011381,2]
[329835946,1718730633908,-300.0,0.00011381,2]
[329835948,1718730633918,-176.46191199,0.00011382,2]
[329835950,1718730633932,-41.2496771,0.00011382,2]
[329835952,1718730633941,-659.87577635,0.00011382,2]
[329835954,1718730633951,-2354.2070454,0.00011382,2]
[329835956,1718730633960,-1395.43289063,0.00011382,2]
[329835958,1718730633969,-2197.22581013,0.00011382,2]
[329835960,1718730633979,-155.0,0.00011383,2]
[329835962,1718730633988,-201.92999714,0.00011383,2]
[329835964,1718730633998,-155.0,0.00011383,2]
[329835966,1718730634007,-176.73759713,0.00011383,2]
[329835968,1718730634016,-155.0,0.00011384,2]
[329835970,1718730634025,-178.4933045,0.00011399,2]
[329835972,1718730634035,-178.4933045,0.00011408,2]
[329835974,1718730634044,-178.4933045,0.00011417,2]
[329835975,1718730634053,-187.0,0.00011497,2]
[329835976,1718730634063,-499.99,0.00011506,2]
[329835977,1718730634072,-680.09,0.00011517,2]
[329835978,1718730634081,-412.39731356,0.00012831,2]
[329835979,1718730634091,-662.39,0.00012832,2]
[329835980,1718730634100,-177.16,0.00012861,2]
[329835981,1718730634110,-167.12,0.00013212,2]
[329835982,1718730634119,-162.99818709,0.00013679,2]
[329835983,1718730634128,-161.55,0.00013699,2]
[329835984,1718730634138,-28551.72,0.00013776,2]
[329835985,1718730634147,-1674.08692414,0.00013779,2]
[329835986,1718730634156,-680.09,0.00013781,2]
[329835987,1718730634166,-2735.99554317,0.00013785,2]
[329835988,1718730634178,-8651.89008965,0.00013787,2]
[329835989,1718730634188,-394.73125084,0.00013787,2]
[329835990,1718730634198,-6264.15085691,0.00013884,2]
[329835991,1718730634207,-1219.50133938,0.00013886,2]
[329835992,1718730634217,-2646.37255454,0.00013887,2]
[329835993,1718730634229,-14980.64749793,0.00013887,2]
[329835994,1718730634240,-250.48725582,0.00013887,2]
[329835995,1718730634251,-418.54007673,0.00013887,2]
[329835996,1718730634263,-553.94826407,0.00013887,2]
[329835997,1718730634274,-3602.44257493,0.00013887,2]
[329835998,1718730634285,-18794.98169582,0.00013887,2]
[329835999,1718730634294,-1425.01613652,0.000139,2]
[329836000,1718730634306,-1951.14740453,0.000139,2]
[329836001,1718730634317,-1565.31339387,0.000139,2]
[329836002,1718730634329,-418.9295176,0.000139,2]
[329836003,1718730634340,-319.5176318,0.000139,2]
[329836004,1718730634406,-641.37290133,0.000139,2]
[329836005,1718730634418,-8421.46922863,0.000139,2]
[329836006,1718730634433,-50331.63069526,0.000139,2]
[329836007,1718730634442,-299.97320991,0.000139,2]
[329836008,1718730634451,-2489.57083121,0.00014,2]
[329836009,1718730634461,-250.0,0.00014003,2]
[329836010,1718730634470,-173.22,0.0001411,2]
[329836011,1718730634479,-161.55,0.00014384,2]
[329836012,1718730634489,-602.2592,0.00014619,2]
[329836013,1718730634498,-415.07899166,0.0001464,2]
[329836014,1718730634690,-3404.5372,0.000148,2]
[329836015,1718730634701,-19600.0,0.000148,2]
[329836016,1718730634711,-2421.9286721,0.00014898,2]
[329836017,1718730634721,-187.46379308,0.00014898,2]
[329836018,1718730634730,-4328.7746,0.00014898,2]
[329836019,1718730634739,-144463.1546,0.000149,2]
[329836020,1718730634748,-4285.6054,0.000149,2]
[329836021,1718730634758,-24124.93135749,0.000149,2]
[329836022,1718730634767,-500.0,0.000149,2]
[329836023,1718730634776,-360.40940848,0.000149,2]
[329836024,1718730634786,-576.32388321,0.000149,2]
[329836025,1718730634795,-5574.7241536,0.000149,2]
[329836026,1718730634804,-176.24870704,0.000149,2]
[329836027,1718730634813,-345.04747232,0.000149,2]
[329836028,1718730634823,-555.46677462,0.000149,2]
[329836029,1718730634832,-673.29851176,0.000149,2]
[329836030,1718730634842,-219.9,0.00014904,2]
[329836031,1718730634851,-3483.67909787,0.00014985,2]
[329836032,1718730634860,-408.20006503,0.00014988,2]
[329836033,1718730634870,-164.16558676,0.0001499,2]
[329836034,1718730634879,-164.16558676,0.0001499,2]
[329836035,1718730634888,-407.0,0.00014996,2]
[329836036,1718730634898,-180.77044057,0.00014998,2]
[329836037,1718730634907,-411.02189811,0.00014998,2]
[329836038,1718730634917,-365.72100783,0.00014998,2]
[329836039,1718730634930,-844.79301962,0.00014998,2]
[329836040,1718730634939,-207.0682767,0.00014998,2]
[329836041,1718730634948,-2400.89832024,0.00014998,2]
[329836042,1718730634957,-1106.19043976,0.00014998,2]
[329836043,1718730634967,-507.39570669,0.00014998,2]
[329836044,1718730634976,-155.0,0.00014998,2]
[329836045,1718730634986,-364.50139533,0.00014998,2]
[329836046,1718730634996,-449.49506021,0.00014998,2]
[329836047,1718730635006,-538.0450979,0.00014998,2]
[329836048,1718730635015,-254.55229055,0.00014998,2]
[329836049,1718730635025,-183.41844134,0.00014998,2]
[329836050,1718730635034,-3069.76697533,0.00014998,2]
[329836051,1718730635044,-382.96500773,0.00014998,2]
[329836052,1718730635053,-3640.55464966,0.00014998,2]
[329836053,1718730635063,-155.99872141,0.00014998,2]
[329836054,1718730635072,-155.0,0.00014998,2]
[329836055,1718730635082,-2613.07948524,0.00014998,2]
[329836056,1718730635091,-155.0,0.00014998,2]
[329836057,1718730635100,-792.86995364,0.00014998,2]
[329836058,1718730635110,-762.11180794,0.00014998,2]
[329836059,1718730635119,-217.94215905,0.00014998,2]
[329836060,1718730635128,-429.97845481,0.00014998,2]
[329836061,1718730635138,-637.15777013,0.00014998,2]
[329836062,1718730635148,-162.67638864,0.00014998,2]
[329836063,1718730635157,-204.6791218,0.00014998,2]
[329836064,1718730635167,-155.0,0.00014998,2]
[329836065,1718730635180,-177.56539034,0.00014998,2]
[329836066,1718730635189,-155.0,0.00014998,2]
[329836067,1718730635199,-155.0,0.00014999,2]